Cogmind - Beta 11.1 @@@ ROGUE MODE // 2022.09.20 @ 17:05:37 Player: Zirov Result: Destroyed by G-47 Trooper with Particle Gun Performance ------------- Evolutions (2) 1000 Regions Visited (8) 1600 Robots Destroyed (144) 720 Value Destroyed (3495) 3495 Prototype IDs (14) 280 Alien Tech Used (0) 0 Bonus (844) 844 TOTAL SCORE: 7939 Bonus ------- High Alert Combat Kills 235 Follower Combat Kills 309 Aligned with FarCom 300 Cogmind --------- Core Integrity 0/550 Matter 300/300 Energy 96/100 System Corruption 1% Temperature Cool (9) Movement Rolling (115) Ox1 Location -8/Storage Parts ------- > --- POWER (1) -------- (None) > --- PROPULSION (4) --- Armored Huge Wheel > --- UTILITY (4) ------ Advanced Heat Sink Large Storage Unit Improved Targeting Computer Trap Reconfigurator > --- WEAPON (2) ------- Advanced Beam Cannon Advanced Beam Cannon > --- INVENTORY (15) --- Cold Fusion Reactor VSS Leg Armored Huge Wheel Armored Huge Wheel Authchip [Armor] Sensor Drone Bay (20/20) Minigun Improved Light Cannon Katana Peak State ------------ > --- POWER ------------ Improved Deuterium Engine > --- PROPULSION ------- Armored Huge Wheel Armored Huge Wheel > --- UTILITY ---------- Advanced Heat Sink Large Storage Unit Improved Targeting Computer Trap Reconfigurator > --- WEAPON ----------- Advanced Beam Cannon Advanced Beam Cannon > --- INVENTORY -------- Cold Fusion Reactor VSS Leg Armored Huge Wheel Armored Huge Wheel Authchip [Armor] Sensor Drone Bay Minigun Improved Light Cannon Katana [Rating: 47] Favorites ----------- Power Light Ion Engine Engine Light Ion Engine Power Core Light Nuclear Core Propulsion Aluminum Leg Treads Light Treads Leg Aluminum Leg Wheel Armored Huge Wheel Hover Unit Airjet Utility Improved Targeting Computer Device Sensor Drone Bay Storage Large Storage Unit Processor Improved Targeting Computer Hackware Hacking Suite Protection Light Armor Plating Weapon Heavy Assault Rifle Energy Gun Beam Rifle Energy Cannon Advanced Beam Cannon Ballistic Gun Heavy Assault Rifle Ballistic Cannon Flak Cannon Launcher Rocket Launcher Slashing Weapon Katana Build | -11 -10 -10 -9 -9 -9 -8 -8 -8 ------- Run | Scr Mat Min Mat Min Exi Min Mat Sto Slots Evolved 4 | . . . 2 . . . 2 . Power . | . . . . . . . . . Propulsion 2 | . . . 1 . . . 1 . Utility 2 | . . . 1 . . . 1 . Weapon . | . . . . . . . . . Parts Attached 141 | 6 10 6 51 9 2 5 43 9 Power 16 | 1 1 1 9 1 . . 2 1 Engine 13 | 1 . 1 9 1 . . . 1 Core 3 | . 1 . . . . . 2 . Reactor . | . . . . . . . . . Propulsion 39 | 2 3 1 17 1 . 1 14 . Treads 8 | 2 . . 2 1 . . 3 . Leg 25 | . 3 1 14 . . . 7 . Wheel 5 | . . . 1 . . 1 3 . Hover 1 | . . . . . . . 1 . Flight . | . . . . . . . . . Utility 46 | 1 6 1 14 3 2 3 13 3 Device 16 | . 2 . 4 1 1 1 5 2 Storage 5 | 1 1 . 3 . . . . . Processor 8 | . 2 . 3 . 1 . 2 . Hackware 2 | . . . . . . . 2 . Protection 15 | . 1 1 4 2 . 2 4 1 Artifact . | . . . . . . . . . Weapon 40 | 2 . 3 11 4 . 1 14 5 Energy Gun 4 | . . . 1 2 . . . 1 Energy Cannon 2 | . . . . . . . . 2 Ballistic Gun 20 | 2 . 3 6 1 . . 8 . Ballistic Cannon 3 | . . . . . . . 2 1 Launcher 7 | . . . 3 1 . 1 2 . Special Weapon . | . . . . . . . . . Impact Weapon . | . . . . . . . . . Slashing Weapon 4 | . . . 1 . . . 2 1 Piercing Weapon . | . . . . . . . . . Special Melee Weapon . | . . . . . . . . . Unidentified Prototypes 3 | . . . . 1 . . 1 1 Parts Lost 33 | . . 4 7 . . 3 15 4 Power 6 | . . 1 2 . . . 1 2 Propulsion 11 | . . 1 1 . . 1 7 1 Utility 10 | . . 1 2 . . 1 5 1 Weapon 6 | . . 1 2 . . 1 2 . Highest Loss Streak 9 | . . 4 2 . . 3 9 3 To Critical Strikes 2 | . . 1 . . . . . 1 Average Slot Usage (%) 92 | . 97 93 99 98 88 86 84 80 Engine 7 | . 9 1 10 11 11 11 1 6 Core 2 | . 4 8 . . . . 6 3 Treads 8 | . 10 . 2 31 22 11 7 . Leg 15 | . 17 26 28 . . . 10 . Wheel 3 | . . . 1 . . 10 6 17 Device 4 | . 3 . 4 2 5 9 4 1 Storage 10 | . 14 14 11 11 11 11 9 9 Processor 10 | . 2 . 11 11 15 11 12 16 Hackware 1 | . . . . . . . 5 7 Protection 4 | . 4 13 5 8 . . 2 . Energy Gun 2 | . . . . 8 11 11 . . Ballistic Gun 15 | . 28 27 20 8 11 . 9 . Ballistic Cannon 1 | . . . . . . . 4 7 Slashing Weapon 1 | . . . 1 2 . . 1 7 Naked Turns . | . . . . . . . . . Heaviest Build 44 | 13 21 26 36 43 43 44 44 42 Greatest Support 60 | 40 40 20 40 60 40 12 60 56 Greatest Overweight (x) 8 | 1 1 2 2 . 1 3 8 1 Average Overweight (x) . | . . . . . . 2 . . Largest Inventory Capacity 15 | 8 10 10 15 15 15 15 15 15 Average Capacity 13 | 7 9 10 14 15 15 15 15 15 Most Carried 15 | 2 10 10 15 15 15 15 15 15 Average Carried 13 | 1 7 9 13 14 14 12 14 14 Final Capacity 15 | 8 10 10 15 15 15 15 15 15 Final Carried 15 | 2 10 10 15 15 15 13 15 11 Class Distribution -------------------- 53% | Scavenger-Mutant 41% | Mutant Dominant Class ---------------- Mutant | -10/Materials Mutant | -10/Mines Scavenger-Mutant | -9/Materials Scavenger-Mutant | -9/Mines Mutant | -9/Exiles Mutant | -8/Mines Mutant | -8/Materials Mutant | -8/Storage Resources | -11 -10 -10 -9 -9 -9 -8 -8 -8 ----------- Run | Scr Mat Min Mat Min Exi Min Mat Sto Matter Collected 3579 | 193 327 165 1293 172 . 56 1268 105 Remotely 681 | . 190 . 403 . . . 88 . Salvage Created 4643 | . 476 302 1558 121 . 22 1653 511 Parts 306 | . 32 15 123 7 . 4 87 38 Haulers Intercepted 13 | . 1 . 5 . . . 6 1 Recyclers Shooed 10 | . 1 4 3 . . . 2 . Parts Field Recycled . | . . . . . . . . . Retrieved Matter . | . . . . . . . . . Parts Self-Destructed . | . . . . . . . . . Prevented . | . . . . . . . . . Kills | -11 -10 -10 -9 -9 -9 -8 -8 -8 ------- Run | Scr Mat Min Mat Min Exi Min Mat Sto Combat Hostiles Destroyed 89 | . 6 5 30 2 . 4 33 9 Melee 6 | . . . 1 . . . 1 4 Guns 47 | . 6 5 22 2 . . 12 . Cannons 11 | . . . . . . . 6 5 AOE 25 | . . . 7 . . 4 14 . Classes Destroyed 11 | . 6 1 3 . . 1 . . Worker 13 | . 1 1 3 . . . 6 2 Builder 7 | . . . 2 . . . 4 1 Hauler 13 | . 1 . 5 . . . 6 1 Recycler 10 | . 2 2 2 1 . . 3 . Operator 3 | . . . 1 . . . 2 . Watcher 9 | . 3 . 3 . . . 3 . Swarmer 26 | . 3 3 8 . . 3 7 2 Grunt 38 | . 3 . 12 2 . . 18 3 Brawler 1 | . . . 1 . . . . . Sentry 22 | . . 2 9 . . . 7 4 Hunter 2 | . . . . . . 1 1 . Best Kill Streak 26 | . 6 5 4 1 . 3 26 3 Combat Bots Only 14 | . 3 5 3 1 . 3 14 2 Max Kills in Single Turn 4 | . 2 1 3 1 . 2 4 1 Gunslinging 1 | . 1 . . . . . . . Exploded 4 | . . . 3 . . 2 4 . Melee 1 | . . . 1 . . . 1 1 Uniques/NPCs Destroyed . | . . . . . . . . . Combat | -11 -10 -10 -9 -9 -9 -8 -8 -8 -------- Run | Scr Mat Min Mat Min Exi Min Mat Sto Damage Taken 5857 | . 253 520 1589 113 . 212 2116 1054 Core 826 | . 54 75 115 . . 16 384 182 Absorbed by Shields 75 | . . . . . . . 75 . Regen/Repaired (Parts) 194 | . . . 194 . . . . . Core Remaining (%) 71 | 100 . 48 . . . 67 . . Volleys Fired 332 | . 40 35 131 9 . 10 94 13 Largest 2 | . 2 2 2 2 . 2 2 2 Hottest 136 | . 40 46 79 79 . 89 84 136 Shots Fired 606 | . 80 64 255 19 . 19 151 18 Gun 518 | . 80 64 248 18 . 13 95 . Cannon 50 | . . . . . . . 32 18 Launcher 38 | . . . 7 1 . 6 24 . Special . | . . . . . . . . . Kinetic 531 | . 80 64 244 9 . 4 125 5 Thermal 37 | . . . 4 9 . 9 2 13 Explosive 38 | . . . 7 1 . 6 24 . Electromagnetic . | . . . . . . . . . Robot Hit Streak 18 | . 8 18 11 8 . 5 15 11 Robot Miss Streak 6 | . 4 4 5 5 . 2 6 3 Penetration Max 1 | . . . . . . . 1 . Secondary Targets 4 | . 1 2 1 . . . . . Max Gunslinging Chain 1 | . 1 1 1 . . . . . Shots Hit Robots 440 | . 50 45 171 11 . 14 126 23 Core Hits 246 | . 21 14 75 3 . 6 112 15 Critical Kills 3 | . . . 2 . . . 1 . Critical Parts Destroyed 6 | . 1 . 3 1 . . 1 . Critical Strikes 12 | . 1 . 6 2 . . 3 . Burn 3 | . . . 1 1 . . 1 . Destroy 9 | . 1 . 5 1 . . 2 . Melee Attacks 36 | . . . 6 . . . 14 16 Impact . | . . . . . . . . . Slashing 36 | . . . 6 . . . 14 16 Piercing . | . . . . . . . . . Sneak Attacks 8 | . . . 2 . . . 4 2 Combat Hostiles . | . . . . . . . . . Follow-up Attacks . | . . . . . . . . . Damage Inflicted 9876 | . 576 499 2961 165 . 477 4494 704 Guns 4933 | . 567 491 2128 158 . 118 1471 . Cannons 718 | . . . . . . . 440 278 Explosions 3013 | . . . 566 . . 359 2088 . Melee 1164 | . . . 258 . . . 482 424 Ramming 48 | . 9 8 9 7 . . 13 2 Kinetic 5244 | . 567 491 2071 87 . 45 1897 86 Thermal 407 | . . . 57 71 . 73 14 192 Explosive 3013 | . . . 566 . . 359 2088 . Electromagnetic . | . . . . . . . . . Impact . | . . . . . . . . . Slashing 1164 | . . . 258 . . . 482 424 Piercing . | . . . . . . . . . Highest Corruption 2 | . . . 2 2 2 2 . 1 Average Corruption 1 | . . . 2 2 2 2 . 1 Corruption Purged . | . . . . . . . . . Corruption Blocked . | . . . . . . . . . Effects 50 | . . . 22 8 14 4 . 2 Message Errors 18 | . . . 10 2 5 1 . . Matter Fused 6 | . . . 1 1 4 . . . Heat Flow Errors 7 | . . . 3 2 1 . . 1 Energy Discharges 6 | . . . 3 1 . 2 . . Parts Rejected 1 | . . . . 1 . . . . Data Loss (minor) 5 | . . . 2 . 2 . . 1 Data Loss (major) 2 | . . . . . 2 . . . Misfires 3 | . . . 2 1 . . . . Weapon Failures 2 | . . . 1 . . 1 . . Overload Shots . | . . . . . . . . . Overflow Damage 175 | . . . 6 . . 27 122 20 Projectiles . | . . . . . . . . . Explosions 91 | . . . 6 . . 27 58 . Melee 84 | . . . . . . . 64 20 Knockbacks 22 | . . . . . . . 22 . Impact . | . . . . . . . . . Kinetic 18 | . . . . . . . 18 . Secondary 4 | . . . . . . . 4 . Self-Inflicted Damage 178 | . . . 98 7 . 5 67 1 Shots 7 | . . . 3 1 . 1 2 . Rammed 3 | . 1 . . 1 . . . 1 Targets Rammed 11 | . 1 2 3 2 . . 2 1 Kicked 7 | . . 2 3 . . . 2 . Crushed 1 | . . . . 1 . . . . Highest Temperature 236 | . 42 19 236 207 175 107 162 92 Average Temperature 36 | . 22 7 22 103 96 41 34 17 Received Heat Transfer 2045 | . 123 144 555 63 . . 782 378 Effects 2 | . . . 2 . . . . . Interference 2 | . . . 2 . . . . . Siege Activations . | . . . . . . . . . Robots Corrupted . | . . . . . . . . . Combat Hostiles . | . . . . . . . . . Parts Fried . | . . . . . . . . . Impact Corruptions . | . . . . . . . . . Robots Melted . | . . . . . . . . . Combat Hostiles . | . . . . . . . . . Parts Melted 2 | . . . 1 . . . . 1 Heat Transferred 1102 | . . . 222 259 . 185 111 325 Parts Sabotaged . | . . . . . . . . . Parts Stolen . | . . . . . . . . . Parts Stripped . | . . . . . . . . . Power Chain Reactions . | . . . . . . . . . Missiles Intercepted . | . . . . . . . . . Alert | -11 -10 -10 -9 -9 -9 -8 -8 -8 ------- Run | Scr Mat Min Mat Min Exi Min Mat Sto Peak Influence 741 | . 211 65 741 302 . 154 631 509 Initial 278 | . . 5 25 278 . . 59 101 Average 251 | . 63 24 390 196 . 62 245 328 Maximum Alert Level 3 | . 1 . 3 1 . . 2 2 Low Security (%) 55 | 100 98 100 35 50 . 100 55 22 Level 1 17 | . 1 . 15 49 . . 18 36 Level 2 21 | . . . 34 . . . 26 40 Level 3 4 | . . . 14 . . . . . Level 4 . | . . . . . . . . . Level 5 . | . . . . . . . . . High Security . | . . . . . . . . . Max Security . | . . . . . . . . . Squads Dispatched 15 | . 1 . 4 . . . 5 5 Investigation 6 | . 1 . 2 . . . 2 1 Extermination . | . . . . . . . . . Reinforcement 6 | . . . 2 . . . 3 1 Assault 2 | . . . . . . . . 2 Garrison 1 | . . . . . . . . 1 Intercept . | . . . . . . . . . Searches Triggered . | . . . . . . . . . Construction Impeded 1 | . . . . . . . 1 . Haulers Reinforced . | . . . . . . . . . Active Scanning Responses . | . . . . . . . . . Cargo Convoy Interrupts . | . . . . . . . . . Stealth | -11 -10 -10 -9 -9 -9 -8 -8 -8 --------- Run | Scr Mat Min Mat Min Exi Min Mat Sto Distress Signals 14 | . 1 . 3 . . . 8 2 Communications Jammed . | . . . . . . . . . Distress Signals . | . . . . . . . . . Times Spotted 159 | . 13 5 52 2 . 3 47 37 Peak Tracking Total 16 | . 6 5 5 2 . 3 10 16 Tactical Retreats 7 | . . . 2 . . . 2 3 Traps | -11 -10 -10 -9 -9 -9 -8 -8 -8 ------- Run | Scr Mat Min Mat Min Exi Min Mat Sto Traps Triggered 4 | . . . 2 . . . 1 1 Indirectly . | . . . . . . . . . Trap Hack Attempts . | . . . . . . . . . Triggered . | . . . . . . . . . Disarmed . | . . . . . . . . . Reprogrammed . | . . . . . . . . . Reused . | . . . . . . . . . Traps Extracted . | . . . . . . . . . Installed . | . . . . . . . . . Triggered . | . . . . . . . . . Machines | -11 -10 -10 -9 -9 -9 -8 -8 -8 ---------- Run | Scr Mat Min Mat Min Exi Min Mat Sto Machines Disabled 13 | . . . 6 . . 1 5 1 Max in Single Turn 1 | . . . 1 . . 1 1 1 Machines Sabotaged . | . . . . . . . . . Garrisons Compromised . | . . . . . . . . . Overloaded Fab Kills . | . . . . . . . . . Hacking | -11 -10 -10 -9 -9 -9 -8 -8 -8 --------- Run | Scr Mat Min Mat Min Exi Min Mat Sto Machines Accessed 33 | . 7 . 12 1 . . 6 7 Terminals 28 | . 7 . 9 . . . 5 7 Fabricators . | . . . . . . . . . Repair Stations 3 | . . . 2 . . . 1 . Recycling Units . | . . . . . . . . . Scanalyzers 1 | . . . 1 . . . . . Garrison Access . | . . . . . . . . . Total Hacks 114 | . 18 . 53 1 . . 24 18 Successful 66 | . 11 . 29 1 . . 11 14 Failed 48 | . 7 . 24 . . . 13 4 Catastrophic 7 | . 2 . 3 . . . 2 . Database Lockouts . | . . . . . . . . . Manual 22 | . 4 . 7 . 1 . 6 4 Terminals 90 | . 18 . 33 . . . 21 18 Fabricators . | . . . . . . . . . Repair Stations 11 | . . . 8 . . . 3 . Recycling Units . | . . . . . . . . . Scanalyzers 12 | . . . 12 . . . . . Garrison Access . | . . . . . . . . . Terminal Hacks 47 | . 11 . 11 1 . . 10 14 Record 1 | . . . . . . . 1 . Part Schematic 2 | . . . 1 . . . . 1 Prototype ID Bank 8 | . 1 . 3 . . . 2 2 Open Door 4 | . . . . 1 . . . 3 Level Access Points 1 | . . . 1 . . . . . Branch Access Points 2 | . 1 . . . . . . 1 Terminal Index 1 | . 1 . . . . . . . Alert Level 4 | . 1 . 1 . . . 1 1 Unreport Threat 3 | . . . . . . . 3 . Locate Traps 8 | . 3 . 2 . . . 1 2 Transport Status 1 | . 1 . . . . . . . Hauler Manifests 3 | . 1 . . . . . 1 1 Registered Components 4 | . 1 . 1 . . . 1 1 Registered Prototypes 1 | . . . . . . . . 1 Zone Layout 4 | . 1 . 2 . . . . 1 Fabricator Hacks . | . . . . . . . . . Repair Station Hacks 7 | . . . 6 . . . 1 . Scan Component 4 | . . . 3 . . . 1 . Repair 3 | . . . 3 . . . . . Recycling Unit Hacks . | . . . . . . . . . Scanalyzer 12 | . . . 12 . . . . . Insert Component 6 | . . . 6 . . . . . Analyze 6 | . . . 6 . . . . . Garrison Access Hacks . | . . . . . . . . . Unauthorized Hacks . | . . . . . . . . . Terminals . | . . . . . . . . . Fabricators . | . . . . . . . . . Repair Stations . | . . . . . . . . . Recycling Units . | . . . . . . . . . Scanalyzers . | . . . . . . . . . Garrison Access . | . . . . . . . . . Data Cores Recovered 1 | . . . . . . . 1 . Used . | . . . . . . . . . Hacking Detections 26 | . 6 . 10 . . . 6 4 Full Trace Events 6 | . 2 . 2 . . . 1 1 Feedback Events . | . . . . . . . . . Feedback Blocked . | . . . . . . . . . Robot Schematics Acquired . | . . . . . . . . . Robots Built . | . . . . . . . . . Authchips . | . . . . . . . . . Time . | . . . . . . . . . Total Robot Build Rating . | . . . . . . . . . Part Schematics Acquired 8 | . . . 7 . . . . 1 Parts Built . | . . . . . . . . . Authchips . | . . . . . . . . . Time . | . . . . . . . . . Total Part Build Rating . | . . . . . . . . . Parts Repaired 3 | . . . 3 . . . . . Time 78 | . . . 78 . . . . . Parts Recycled . | . . . . . . . . . Recycled Matter . | . . . . . . . . . Retrieved Matter . | . . . . . . . . . Retrieved Components . | . . . . . . . . . Parts Scanalyzed 6 | . . . 6 . . . . . Part Schematics Acquired 6 | . . . 6 . . . . . Parts Damaged . | . . . . . . . . . Bothacking | -11 -10 -10 -9 -9 -9 -8 -8 -8 ------------ Run | Scr Mat Min Mat Min Exi Min Mat Sto Used RIF Installer . | . . . . . . . . . Robots Hacked . | . . . . . . . . . Non-combat . | . . . . . . . . . Combat . | . . . . . . . . . Robot Hacks Applied . | . . . . . . . . . Relay Couplers Released . | . . . . . . . . . Fabnet Peak Effective % . | . . . . . . . . . Robots Rewired . | . . . . . . . . . Allies Hacked . | . . . . . . . . . Hacks Repelled . | . . . . . . . . . Allies | -11 -10 -10 -9 -9 -9 -8 -8 -8 -------- Run | Scr Mat Min Mat Min Exi Min Mat Sto Total Allies 12 | . . . . . . . . 12 Largest Group 10 | . . . . . . . . 10 Highest-Rated Group 173 | . . . . . . . . 173 Highest-Rated Ally 31 | . . . . . . . . 31 Total Orders 13 | . . . . 2 2 8 1 . STAY 2 | . . . . . . 2 . . EXPLORE 5 | . . . . 1 1 2 1 . RETURN 6 | . . . . 1 1 4 . . Ally Attacks 73 | . . . . . . . . 73 Total Damage 1092 | . . . . . . . . 1092 Kills 11 | . . . . . . . . 11 Allies Corrupted . | . . . . . . . . . Allies Melted . | . . . . . . . . . Intel | -11 -10 -10 -9 -9 -9 -8 -8 -8 ------- Run | Scr Mat Min Mat Min Exi Min Mat Sto Robot Analysis Total . | . . . . . . . . . Derelict Logs Recovered 2 | . . 1 . 1 . . . . Drone Launches 7 | . . . . 2 1 4 . . Drone Recoveries 7 | . . . . 2 1 3 1 . Exploration | -11 -10 -10 -9 -9 -9 -8 -8 -8 ------------- Run | Scr Mat Min Mat Min Exi Min Mat Sto Turns Passed 10592 | 114 1098 656 3242 815 1017 355 2580 715 Spaces Moved 6066 | 67 612 291 1891 368 517 190 1582 548 Core 7 | 4 . . . . . . 3 . Treads 1806 | 63 198 . 218 368 517 . 442 . Legs 2716 | . 414 291 1661 . . . 350 . Wheels 1537 | . . . 12 . . 190 787 548 Hover . | . . . . . . . . . Flight . | . . . . . . . . . Fastest Speed 50 | 50 120 120 120 160 160 120 95 100 Average Speed 140 | 154 153 189 134 160 194 134 126 100 Slowest Speed 450 | 160 190 260 190 160 240 135 450 115 Overloaded Moves . | . . . . . . . . . Propulsion Burnouts . | . . . . . . . . . Robots Hopped . | . . . . . . . . . Cave-ins Triggered . | . . . . . . . . . Exploration Rate (%) 71 | 7 69 63 99 98 93 48 83 82 Regions Visited 8 Branch Regions 5 Pre-discovered Areas 2 | . . 1 . 1 . . . . Known Exits Taken 5 | . 1 1 . . 1 1 1 . Unknown Exits Taken 3 | 1 . . 1 1 . . . . Scrap Searched 3 | . . 1 . 1 . 1 . . Spaces Dug . | . . . . . . . . . Terrain Destroyed 221 | . . . 49 9 . 48 115 . Melee . | . . . . . . . . . Projectile . | . . . . . . . . . AOE 221 | . . . 49 9 . 48 115 . Terrain Rammed . | . . . . . . . . . Walls Destroyed . | . . . . . . . . . Machines Disabled . | . . . . . . . . . Actions | -11 -10 -10 -9 -9 -9 -8 -8 -8 --------- Run | Scr Mat Min Mat Min Exi Min Mat Sto Total 7493 | 74 702 333 2346 574 528 270 1989 677 Wait 745 | . 13 . 200 181 6 63 213 69 Move 6058 | 66 611 290 1890 367 516 189 1581 548 Hop . | . . . . . . . . . Pick Up 79 | 2 15 . 27 2 2 2 19 10 Fast Attach 38 | 6 2 2 9 . . . 19 . Attach 28 | . 4 2 8 . . 4 7 3 Detach 11 | . 4 . 4 . . 1 1 1 Swap 75 | . 4 2 34 9 2 1 17 6 Drop 80 | . 8 . 34 4 2 . 22 10 Fire 332 | . 40 35 131 9 . 10 94 13 Melee 36 | . . . 6 . . . 14 16 Ram 1 | . . . . . . . . 1 Kick 7 | . . 2 3 . . . 2 . Crush 3 | . 1 . . 2 . . . . Escape Stasis . | . . . . . . . . . Rewire . | . . . . . . . . . Trap . | . . . . . . . . . Miscellaneous . | . . . . . . . . . Route ------- -11/Scrapyard -10/Materials (discovered 5 exits: *Mat x3 / *Min x2) -10/Mines (discovered 2 exits: *Mat x2) -9/Materials (discovered 4 exits: *Mat x3 / *Min) -9/Mines (discovered 3 exits: *Mat x2 / *Exi) -9/Exiles (discovered 2 exits: *Min x2) -8/Mines -8/Materials (discovered 4 exits: [*Fac x2] / *Sto x2) -8/Storage (discovered 1 exit: Rec) History --------- Turn | Location | Event 9 | -11/Scrapyard | Discovered new exit (range 15) 115 | -11/Scrapyard | Entered Materials 194 | -10/Materials | Discovered new exit (range 11) 309 | -10/Materials | Build established: Mutant 496 | -10/Materials | Discovered new exit (range 10) 624 | -10/Materials | Identified exit to Materials 783 | -10/Materials | Identified exit to Mines 1137 | -10/Materials | Discovered exit to Materials (range 8) 1213 | -10/Materials | Entered Mines 1445 | -10/Mines | Discovered exit to Materials (range 9) 1492 | -10/Mines | Assembled infested the area 1497 | -10/Mines | Assisted by a Guerilla fighting off Assembled 1525 | -10/Mines | Found a hidden stash of uninstalled traps 1633 | -10/Mines | Core integrity fell below 50% 1669 | -10/Mines | Lost 4 parts (1p1n1u1w) 1855 | -10/Mines | Discovered exit to Materials (range 3) 1869 | -10/Mines | Entered Materials 1869 | -9/Materials | Evolved 2 slots: Propulsion x1, Utility x1 2017 | -9/Materials | Identified exit to Materials 2243 | -9/Materials | Build established: Scavenger-Mutant 2270 | -9/Materials | Discovered new exit (range 15) 2822 | -9/Materials | Repaired Lgt. Armor Plating 2850 | -9/Materials | Repaired Aluminum Leg 4271 | -9/Materials | Repaired Aluminum Leg 5111 | -9/Materials | Entered Mines 5119 | -9/Mines | Met a Derelict bent on vengeance 5325 | -9/Mines | Learned location of Storage (-8) 5415 | -9/Mines | Deemed a non-threat by the Exiles lab entrance 5416 | -9/Mines | Discovered new exit (range 5) 5621 | -9/Mines | Found the Drone Emporium 5631 | -9/Mines | Found Prototype Device 5638 | -9/Mines | Identified Sensor Drone Bay 5656 | -9/Mines | Discovered exit to Materials (range 18) 5789 | -9/Mines | Discovered exit to Materials (range 46) 5926 | -9/Mines | Entered Exiles 5947 | -9/Exiles | Discovered new exit (range 15) 6045 | -9/Exiles | Met 8R-AWN 6081 | -9/Exiles | Met EX-HEX 6124 | -9/Exiles | Discovered new exit (range 68) 6146 | -9/Exiles | Met EX-BIN 6175 | -9/Exiles | Aligned with FarCom system 6177 | -9/Exiles | Given EX-Vault access code 6237 | -9/Exiles | Opened EX-Vault 6256 | -9/Exiles | Found Prototype Device 6276 | -9/Exiles | Build established: Mutant 6310 | -9/Exiles | Warned to stay clear of 0b10 Research branches 6502 | -9/Exiles | Identified exit to Mines 6618 | -9/Exiles | Met EX-DEC 6667 | -9/Exiles | Visited The Gauntlet 6787 | -9/Exiles | Build established: Scavenger-Mutant 6943 | -9/Exiles | Left Exiles lab with Trap Reconfigurator 6943 | -9/Exiles | Entered Mines 6986 | -8/Mines | Lost 3 parts (1n1u1w) 7256 | -8/Mines | Build established: Mutant 7287 | -8/Mines | Discovered exit to Materials (range 6) 7298 | -8/Mines | Entered Materials 7298 | -8/Materials | Accompanied by 1 ally 7298 | -8/Materials | Evolved 2 slots: Propulsion x1, Utility x1 7299 | -8/Materials | Identified exit to Storage 7404 | -8/Materials | Identified Trap Reconfigurator 7970 | -8/Materials | Build established: Scavenger-Mutant 8240 | -8/Materials | Core integrity fell below 50% 8254 | -8/Materials | Destroyed 14 combat bots 8290 | -8/Materials | Lost 9 parts (1p4n2u2w) 8604 | -8/Materials | Discovered new exit (range 12) 8989 | -8/Materials | Discovered exit to Storage (range 5) 9534 | -8/Materials | Build established: Mutant 9704 | -8/Materials | Discovered new exit (range 20) 9878 | -8/Materials | Entered Storage 10136 | -8/Storage | Identified exit to Recycling 10184 | -8/Storage | Assisted by bots powering up and referring to "LRC-V3" 10466 | -8/Storage | Met a pair of Derelict thieves 10526 | -8/Storage | Garrison activated, responded to threat 10532 | -8/Storage | Core integrity fell below 20% 10593 | -8/Storage | Destroyed by G-47 Trooper with Particle Gun Last Messages --------------- 10541_ The unstable cave ceiling collapses. 10541_ A-02 Transporter destroyed. 10542_ Critical hit (Burn: +37). 10544_ K-01 Serf collects debris. 10545_ G-47 Trooper suffers critical hit (Burn). 10547_ K-01 Serf collects debris. 10550_ The unstable cave ceiling collapses. 10550_ Adv. Heat Sink crushed. 10550_ G-47 Trooper suffers critical hit (Burn). 10551_ K-01 Serf collects debris. 10557_ Lgt. Armor Plating destroyed. 10558_ The unstable cave ceiling collapses. 10582_ S-10 Pest destroyed. 10583_ Arm. Huge Wheel destroyed. 10585_ Acquired 5 matter. 10586_ S-10 Pest destroyed. 10587_ R-06 Scavenger collects Lgt. Ion Engine. 10591_ R-06 Scavenger collects Lgt. Assault Rifle. 10592_ Critical hit (Destroy). 10592_ Imp. Deuterium Engine destroyed. Map ----- +----------------------------------------------------+ | ???#### !! """ # = %=[%*! #? | | ??????# !! """ ###/##### # ######? | | ??????# !! ## """" # #%%[!#??? | | ??????# ## """" ###T!==%#??? | | ??????#####"T"#### """" ####"%"##??? | | ??????????#####??# """" ## =!%%!#??? | | ????????????????## ##] %%! #??? | | ????????????????# ## #??? | | ????????????????## ##] [ [#??? | | ?????????????????########/##########??? | | ????????????????"?????# #??????????? | | ???????????????"R"????# #??????????? | | ?????????????##" "????# #??????????? | | ?????????????# ????# #??????????? | | ?????????????# "????## ##??????????? | | ????????????#" ""????# #???????????? | | ????????????#" ""??#?#d #???????????? | | ????????????#" #?# #???????????? | | ????????????#T """ #?# g#????####?### | | ????????????#" """ #?# g#????# ??? | | ????????????#" """ #?# ###### ???? | | ?????????????" #?#YY # """""" | | ?????????????# ???#g + "|! !" | | ?????????????# ????## """ # "!!*]" | | ??????????"####+#######g """ # ""[""" | | ??????????" @ s=%s gg """ # | | ????????>?" r%= g g # | | ??????????"#T##+####### # | | ???????????### ???????# """ ######## | | ?????????????#????????# """ w#??????? | | ?????????????Y????????# """ #??????? | | ??????????????????????# #??????? | | ?????????????????????? ????????? | | ??????????????????????########????????? | | ??????????????????????????????????????? | | ??????????????????????????????????????? | | ??????????????????????????????????????? | | ??????????????????????????????????????? | | ??????????????????????????????????????? | | | | | | | | | | | | | | | | | | | | | | | +----------------------------------------------------+ Best States ------------- Heat Dissipation 50 Energy Generation 16 Energy Capacity 290 Matter Stores 300 Matter Capacity 300 Sight Range 20 Terrain Scan Density 10 Additional Mass Support 6 Armor Coverage 375 Evasion (%) 55 Targeting Accuracy 12 Recoil Reduction 3 Particle Charging 15 Offensive Hacking 20 Authchip Count 1 Item Schematics ----------------- Imp. Aluminum Leg | -9/Materials | Hacked Hacking Suite | -9/Materials | Scanalyzed Arm. Wheel | -9/Materials | Scanalyzed Lgt. Armor Plating | -9/Materials | Scanalyzed Weight Redist. System | -9/Materials | Scanalyzed Particle Charger | -9/Materials | Scanalyzed Imp. Heat Sink | -9/Materials | Scanalyzed Chainsword | -8/Storage | Hacked Robot Schematics ------------------ None Fabricated ------------ Nothing Alien Tech Used ----------------- None Achievements -------------- Maybe Next Time I'll Detach My Launcher Challenges ------------ None Game ------ Seed LightpackThunderPit Manual? 0 Play Time 02:16:24 Cumulative 14.8 hours Start 2022.09.20 @ 14:36:49 End 2022.09.20 @ 17:05:37 Sessions 1 Manual Loads 0 Difficulty Rogue Special Mode None Game No. 12 Rogue 12 Adventurer 0 Explorer 0 Win Type - Total 0 Types 0/0/0/0/0/0/0/0/0 Lore% 11 Gallery% 18 Achievement% 18 Wizard Run 0 Options --------- ASCII 1 Keyboard 1 Movement Numpad Keybinds 0 Fullscreen 1 Font 18/SmallcapsGlow Map View 76x50 Tactical HUD 1 Map Filters NONE Filters NONE Steam 1 RUN: 07c01118-91c5-4c24-96b5-c41a90a79fa3